Cogmind - Beta 16.1 *** ADVENTURER MODE // 2026.03.30 @ 10:57:33 Player: Sharded of Serpulo Result: Self-destructed Performance ------------- Evolutions (4) 2000 Regions Visited (9) 1800 Robots Destroyed (103) 515 Value Destroyed (2881) 2881 Prototype IDs (7) 140 Alien Tech Used (0) 0 Bonus (0) 0 TOTAL SCORE: 7336 Bonus ------- None Cogmind --------- Core Integrity 746/850 Matter 202/300 Energy 83/280 System Corruption 0% Temperature Hot (234) Movement Hovering (36) Location -6/Factory Parts ------- > --- POWER (1) -------- Cooled Ion Engine > --- PROPULSION (7) --- Hover Unit Aerolev Unit Aerolev Unit Aerolev Unit Cooled Airjet > --- UTILITY (5) ------ Medium Storage Unit Hacking Suite Hacking Suite Improved System Shield Authchip [Device] > --- WEAPON (2) ------- Thermic Laser > --- INVENTORY (10) --- Hover Unit Cooled Airjet Gravmag Array Gravmag Array Power Amplifier Improved Heat Sink Improved Light Armor Plating System Restoration Module Peak State ------------ > --- POWER ------------ Cooled Ion Engine > --- PROPULSION ------- Hover Unit Aerolev Unit Aerolev Unit Aerolev Unit Aerolev Unit Gravmag System Cooled Airjet > --- UTILITY ---------- Medium Storage Unit Hacking Suite Hacking Suite Improved System Shield Authchip [Device] > --- WEAPON ----------- Thermic Laser Proton Cannon > --- INVENTORY -------- Hover Unit Cooled Airjet Gravmag Array Gravmag Array Power Amplifier Improved Heat Sink Improved Light Armor Plating System Restoration Module [Rating: 59] Favorites ----------- Power Light Ion Engine Engine Light Ion Engine Propulsion Light Treads Treads Light Treads Hover Unit Aerolev Unit Utility Hacking Suite Device Sensor Array Storage Huge Storage Unit Processor Signal Interpreter Hackware Hacking Suite Protection Light Armor Plating Weapon Light Cannon Energy Gun Small Laser Energy Cannon Advanced Beam Cannon Ballistic Gun Improved Assault Rifle Ballistic Cannon Light Cannon Build | -11 -10 -10 -9 -9 -8 -7 -7 -7 -6 ------- Run | Yrd Mat Min Mat Sto Mat Fac Low Low Fac Slots Evolved 8 | . . . 2 . 2 2 . . 2 Power . | . . . . . . . . . . Propulsion 5 | . . . 1 . 2 1 . . 1 Utility 3 | . . . 1 . . 1 . . 1 Weapon . | . . . . . . . . . . Parts Attached 77 | 5 6 2 17 14 17 11 . . 5 Power 9 | 1 1 . 4 2 . 1 . . . Engine 9 | 1 1 . 4 2 . 1 . . . Core . | . . . . . . . . . . Reactor . | . . . . . . . . . . Propulsion 34 | 2 1 1 6 6 10 6 . . 2 Treads 16 | 2 1 1 6 6 . . . . . Leg . | . . . . . . . . . . Wheel . | . . . . . . . . . . Hover 18 | . . . . . 10 6 . . 2 Flight . | . . . . . . . . . . Utility 18 | 1 1 1 3 3 6 2 . . 1 Device 4 | . . 1 1 . 1 1 . . . Storage 5 | 1 1 . 1 . 2 . . . . Processor 1 | . . . 1 . . . . . . Hackware 4 | . . . . . 2 1 . . 1 Protection 4 | . . . . 3 1 . . . . Artifact . | . . . . . . . . . . Weapon 16 | 1 3 . 4 3 1 2 . . 2 Energy Gun 3 | . 1 . 1 . . . . . 1 Energy Cannon 3 | . . . 2 . . . . . 1 Ballistic Gun 8 | 1 . . 1 3 1 2 . . . Ballistic Cannon 2 | . 2 . . . . . . . . Launcher . | . . . . . . . . . . Special Weapon . | . . . . . . . . . . Impact Weapon . | . . . . . . . . . . Slashing Weapon . | . . . . . . . . . . Piercing Weapon . | . . . . . . . . . . Special Melee Weapon . | . . . . . . . . . . Unidentified Prototypes 7 | . . 1 2 2 1 . . . 1 Parts Lost 17 | . . . 1 3 . 8 . . 5 Power 2 | . . . 1 1 . . . . . Propulsion 8 | . . . . . . 6 . . 2 Utility 1 | . . . . 1 . . . . . Weapon 6 | . . . . 1 . 2 . . 3 Highest Loss Streak 4 | . . . 1 1 . 3 . . 4 To Critical Strikes . | . . . . . . . . . . Average Backups 14 | 3 7 15 17 24 10 6 5 5 6 Power 1 | . 1 2 1 2 1 . . . . Propulsion 8 | 1 4 9 10 12 6 3 1 1 1 Utility 2 | . 1 3 1 2 1 1 4 4 4 Weapon 2 | 1 . 1 3 6 1 . . . . Tool/Special . | . . . . . . . . . . Unused Backups 29 | . 9 . 1 4 9 . . . 6 Power 4 | . 1 . . 1 2 . . . . Propulsion 15 | . 6 . 1 1 4 . . . 3 Utility 5 | . 1 . . . 1 . . . 3 Weapon 5 | . 1 . . 2 2 . . . . Tool/Special . | . . . . . . . . . . Average Slot Usage (%) 96 | . 85 85 99 99 99 96 100 100 96 Engine 10 | . 14 14 11 11 9 7 7 7 6 Treads 23 | . 28 28 32 33 . . . . . Hover 10 | . . . . . 44 45 46 46 46 Device 3 | . . . 10 1 . . . . . Storage 10 | . 14 14 11 11 9 7 7 7 6 Processor 4 | . . . 11 3 . . . . . Hackware 4 | . . . . . 14 19 23 23 23 Protection 4 | . . . . 17 3 . . . . Energy Gun 1 | . 10 . . . . . . . 1 Energy Cannon 1 | . . . 3 . . . . . . Ballistic Gun 10 | . 10 . 5 15 18 15 15 15 10 Ballistic Cannon 8 | . 7 28 13 6 . . . . . Peak Build Rating 59 | 5 7 14 14 20 32 44 40 40 59 Average Rating 17 | 3 6 7 12 16 26 38 40 40 49 On Entrance 20 | . 5 7 7 13 20 30 40 40 40 Avg Prop Armor Cover (%) . | . . . . . . . . . . Naked Turns . | . . . . . . . . . . Heaviest Build 100 | 11 29 33 94 100 100 25 25 25 30 Greatest Support 66 | 40 40 40 60 66 37 48 47 47 56 Greatest Overweight (x) 2 | . . . 1 1 2 . . . . Average Overweight (x) . | . . . . 1 . . . . . Largest Inventory Capacity 25 | 8 15 15 25 25 25 10 10 10 10 Average Capacity 16 | 6 9 15 20 25 10 10 10 10 10 Most Carried 25 | 5 15 15 24 25 24 9 5 5 10 Average Carried 14 | 3 7 15 17 24 9 6 5 5 7 Final Capacity 25 | 8 15 15 25 25 10 10 10 10 10 Final Carried 25 | 5 15 15 22 25 10 5 5 5 10 Class Distribution -------------------- 61% | Mutant 16% | Scavenger-Mutant 12% | Hacker-Mutant 9% | Hacker-Sprinter Dominant Class ---------------- Mutant | -10/Materials Mutant | -10/Mines Mutant | -9/Materials Scavenger-Mutant | -9/Storage Hacker-Mutant | -8/Materials Hacker-Sprinter | -7/Factory Hacker-Mutant | -7/Lower Caves Hacker-Mutant | -7/Lower Caves Hacker-Sprinter | -6/Factory Resources | -11 -10 -10 -9 -9 -8 -7 -7 -7 -6 ----------- Run | Yrd Mat Min Mat Sto Mat Fac Low Low Fac Matter Collected 2663 | 207 180 60 669 707 478 254 . 2 106 Remotely . | . . . . . . . . . . Salvage Created 4030 | . 378 17 1037 1115 852 371 . . 260 Parts 249 | . 23 3 69 71 56 21 . . 6 Haulers Intercepted 16 | . 2 . 2 6 3 1 . . 2 Recyclers Shooed 6 | . 1 . 2 . 2 . . . 1 Parts Field Recycled . | . . . . . . . . . . Retrieved Matter . | . . . . . . . . . . Parts Self-Destructed 3 | . . . . . . . 3 . . Prevented . | . . . . . . . . . . Parts Restored . | . . . . . . . . . . Kills | -11 -10 -10 -9 -9 -8 -7 -7 -7 -6 ------- Run | Yrd Mat Min Mat Sto Mat Fac Low Low Fac Combat Hostiles Destroyed 65 | . 4 3 21 20 9 6 . . 2 Guns 31 | . 4 . 1 9 9 6 . . 2 Cannons 34 | . . 3 20 11 . . . . . Classes Destroyed 11 | . 5 1 3 1 . . . . 1 Worker 1 | . 1 . . . . . . . . Hauler 16 | . 2 . 2 6 3 1 . . 2 Recycler 8 | . 1 . 4 1 2 . . . . Mechanic 1 | . . . . 1 . . . . . Operator 4 | . . . 2 . 2 . . . . Watcher 8 | . 3 . 3 1 1 . . . . Swarmer 9 | . . 3 3 3 . . . . . Grunt 28 | . 4 . 9 7 3 4 . . 1 Duelist 3 | . . . 1 . 1 1 . . . Sentry 24 | . . . 8 10 5 1 . . . Hunter 1 | . . . . . . . . . 1 Best Kill Streak 6 | . 3 3 6 6 4 3 . . 2 Combat Bots Only 6 | . 2 3 3 6 2 3 . . 1 Max Kills in Single Turn 2 | . 1 1 2 2 1 1 . . 1 Gunslinging . | . . . . . . . . . . Exploded . | . . . . . . . . . . Melee . | . . . . . . . . . . Uniques/NPCs Destroyed . | . . . . . . . . . . Combat | -11 -10 -10 -9 -9 -8 -7 -7 -7 -6 -------- Run | Yrd Mat Min Mat Sto Mat Fac Low Low Fac Hostile Shots Fired 502 | . 31 7 102 94 42 161 . . 65 Missed 161 | . 5 1 23 30 12 65 . . 25 Hits 341 | . 26 6 79 64 30 96 . . 40 Melee 11 | . . . 4 . 3 4 . . . Projectile 330 | . 26 6 75 64 27 92 . . 40 Critical Strikes 15 | . 1 . 8 2 . 3 . . 1 Damage Taken 3799 | . 250 32 868 618 396 1048 . . 587 Core 652 | . 20 4 111 79 114 220 . . 104 Absorbed by Shields . | . . . . . . . . . . Ignored by Resistances 1101 | . 78 12 252 181 113 300 . . 165 Regen/Repaired (Parts) 36 | . 20 . . 16 . . . . . Core Remaining (%) 77 | 100 . 90 . 52 79 . . 68 . Volleys Fired 314 | . 40 4 67 90 53 37 . . 23 Largest 2 | . 2 2 2 2 2 2 . . 2 Hottest 160 | . 60 60 98 60 46 51 . . 160 Shots Fired 626 | . 80 8 134 180 106 74 . . 44 Gun 420 | . 65 . 19 114 106 74 . . 42 Cannon 206 | . 15 8 115 66 . . . . 2 Launcher . | . . . . . . . . . . Special . | . . . . . . . . . . Kinetic 554 | . 48 8 109 180 106 74 . . 29 Thermal 70 | . 32 . 25 . . . . . 13 Explosive . | . . . . . . . . . . Electromagnetic 2 | . . . . . . . . . 2 Robot Hit Streak 24 | . 19 5 20 24 17 22 . . 17 Robot Miss Streak 4 | . 3 1 3 2 1 2 . . 4 Penetration Max . | . . . . . . . . . . Secondary Targets 5 | . . . . . 1 4 . . . Max Gunslinging Chain 1 | . . . . . 1 1 . . . Shots Hit Robots 505 | . 58 6 103 144 90 68 . . 36 Core Hits 199 | . 21 3 40 49 31 32 . . 23 Critical Kills 1 | . . . . . . 1 . . . Critical Parts Destroyed 2 | . . . . 2 . . . . . Critical Strikes 12 | . . . 4 5 . 1 . . 2 Burn 2 | . . . . . . . . . 2 Destroy 3 | . . . . 2 . 1 . . . Blast 7 | . . . 4 3 . . . . . Melee Attacks . | . . . . . . . . . . Impact . | . . . . . . . . . . Slashing . | . . . . . . . . . . Piercing . | . . . . . . . . . . Sneak Attacks . | . . . . . . . . . . Combat Hostiles . | . . . . . . . . . . Follow-up Attacks . | . . . . . . . . . . Damage Inflicted 7791 | . 625 120 1894 2103 1357 1016 . . 676 Guns 5023 | . 477 . 312 1211 1357 1016 . . 650 Cannons 2768 | . 148 120 1582 892 . . . . 26 Explosions . | . . . . . . . . . . Melee . | . . . . . . . . . . Ramming . | . . . . . . . . . . Kinetic 6893 | . 342 120 1485 2103 1357 1016 . . 470 Thermal 872 | . 283 . 409 . . . . . 180 Explosive . | . . . . . . . . . . Electromagnetic 26 | . . . . . . . . . 26 Impact . | . . . . . . . . . . Slashing . | . . . . . . . . . . Piercing . | . . . . . . . . . . Highest Corruption 2 | . . . . 2 . . . . . Average Corruption 1 | . . . . 1 . . . . . Corruption Purged . | . . . . . . . . . . Corruption Blocked . | . . . . . . . . . . Effects 1 | . . . . 1 . . . . . Energy Discharges 1 | . . . . 1 . . . . . Overload Shots . | . . . . . . . . . . Overflow Damage 35 | . . . 6 . . . . . 29 Projectiles 6 | . . . 6 . . . . . . Explosions 29 | . . . . . . . . . 29 Melee . | . . . . . . . . . . Knockbacks 16 | . . 3 6 7 . . . . . Impact . | . . . . . . . . . . Kinetic 16 | . . 3 6 7 . . . . . Secondary . | . . . . . . . . . . Self-Inflicted Damage 190 | . . . . . . . . . 190 Shots 3 | . . . . . . . . . 3 Rammed . | . . . . . . . . . . Targets Rammed . | . . . . . . . . . . Kicked . | . . . . . . . . . . Crushed . | . . . . . . . . . . Highest Temperature 447 | . 180 . 447 62 6 20 . . 234 Average Temperature 45 | . 53 . 74 17 1 6 . . 47 Received Heat Transfer 1563 | . 177 . 450 273 162 432 . . 69 Effects 2 | . . . 2 . . . . . . Shutdowns 1 | . . . 1 . . . . . . Energy Bleed 1 | . . . 1 . . . . . . Siege Activations . | . . . . . . . . . . Martial Activations . | . . . . . . . . . . Shielding Activations . | . . . . . . . . . . Robots Disrupted . | . . . . . . . . . . Combat Hostiles . | . . . . . . . . . . Robots Corrupted . | . . . . . . . . . . Combat Hostiles . | . . . . . . . . . . Parts Fried . | . . . . . . . . . . Impact Corruptions . | . . . . . . . . . . Robots Melted . | . . . . . . . . . . Combat Hostiles . | . . . . . . . . . . Parts Melted 6 | . 1 . 1 . . . . . 4 Heat Transferred 2090 | . 650 . 740 . . . . . 700 Parts Sabotaged . | . . . . . . . . . . Parts Stolen . | . . . . . . . . . . Parts Stripped . | . . . . . . . . . . Power Chain Reactions . | . . . . . . . . . . Alert | -11 -10 -10 -9 -9 -8 -7 -7 -7 -6 ------- Run | Yrd Mat Min Mat Sto Mat Fac Low Low Fac Maximum Alert Level 1 | . . . . . 1 1 . . . Low Security (%) 99 | 100 100 100 100 100 94 93 . . 100 Level 1 . | . . . . . 5 6 . . . Level 2 . | . . . . . . . . . . Level 3 . | . . . . . . . . . . Level 4 . | . . . . . . . . . . Level 5 . | . . . . . . . . . . High Security . | . . . . . . . . . . Max Security . | . . . . . . . . . . Peak Influence 230 | . 45 70 158 171 230 222 . . 99 Initial 20 | . . 2 19 14 . 20 . . 19 Average 39 | . 6 4 38 40 83 100 . . 13 Influence Increases 2720 | . 163 70 627 645 422 585 . . 208 Destroy 0b10 Robot/C 1300 | . 80 60 420 400 180 120 . . 40 Destroy 0b10 Robot/NC 190 | . 35 . 55 45 40 5 . . 10 Destroy Leader 438 | . 30 10 130 154 68 32 . . 14 Successful Hack 55 | . 9 . 10 12 4 8 . . 12 Disable Machine 63 | . 9 . 9 . 9 . . . 36 Destroy Structure 29 | . . . 3 4 1 . . . 21 Partial Spotted 45 | . . . . . 15 . . . 30 Lose Combat Pursuer 600 | . . . . 30 105 420 . . 45 Influence Decreases 2641 | . 156 17 646 686 370 434 152 15 165 Entered New Map 229 | . . 5 41 27 . 32 92 15 17 Time Decay 1800 | . 149 12 595 488 185 222 60 . 89 Search Patrol Dispatched 100 | . . . . . . 100 . . . Lost Part 167 | . . . 10 30 . 80 . . 47 Purge Threat 345 | . 7 . . 141 185 . . . 12 Squads Dispatched 13 | . . . 2 4 . 6 . . 1 Investigation 4 | . . . 1 1 . 2 . . . Extermination 1 | . . . . . . 1 . . . Reinforcement 4 | . . . 1 1 . 1 . . 1 Assault . | . . . . . . . . . . Garrison 4 | . . . . 2 . 2 . . . Intercept . | . . . . . . . . . . Searches Triggered 1 | . . . . . . 1 . . . Construction Impeded . | . . . . . . . . . . Haulers Reinforced 1 | . . . . . . . . . 1 Active Scanning Responses . | . . . . . . . . . . Cargo Convoy Interrupts . | . . . . . . . . . . Stealth | -11 -10 -10 -9 -9 -8 -7 -7 -7 -6 --------- Run | Yrd Mat Min Mat Sto Mat Fac Low Low Fac Distress Signals 9 | . . . 1 3 5 . . . . Communications Jammed . | . . . . . . . . . . Distress Signals . | . . . . . . . . . . Times Spotted 149 | . 14 3 24 32 26 37 . . 13 Peak Tracking Total 11 | . 3 3 4 4 7 11 . . 6 Tactical Retreats 14 | . . . . 2 3 8 . . 1 Traps | -11 -10 -10 -9 -9 -8 -7 -7 -7 -6 ------- Run | Yrd Mat Min Mat Sto Mat Fac Low Low Fac Traps Triggered 5 | . . . 1 2 . 2 . . . Indirectly . | . . . . . . . . . . Trap Hack Attempts . | . . . . . . . . . . Triggered . | . . . . . . . . . . Disarmed . | . . . . . . . . . . Reprogrammed . | . . . . . . . . . . Reused . | . . . . . . . . . . Traps Extracted . | . . . . . . . . . . Installed . | . . . . . . . . . . Triggered . | . . . . . . . . . . Machines | -11 -10 -10 -9 -9 -8 -7 -7 -7 -6 ---------- Run | Yrd Mat Min Mat Sto Mat Fac Low Low Fac Machines Disabled 7 | . 1 . 1 . 1 . . . 4 Max in Single Turn 4 | . 1 . 1 . 1 . . . 4 Machines Repaired . | . . . . . . . . . . Machines Dismantled . | . . . . . . . . . . Machines Sabotaged . | . . . . . . . . . . Overloaded Fab Kills . | . . . . . . . . . . Hacking | -11 -10 -10 -9 -9 -8 -7 -7 -7 -6 --------- Run | Yrd Mat Min Mat Sto Mat Fac Low Low Fac Machines Accessed 34 | . 7 1 7 7 7 4 . . 1 Terminals 22 | . 4 . 4 5 7 1 . . 1 Fabricators 1 | . . . . . . 1 . . . Repair Stations 3 | . 1 . . 1 . 1 . . . Recycling Units 6 | . 2 . 2 1 . 1 . . . Scanalyzers 1 | . . . 1 . . . . . . Garrison Access . | . . . . . . . . . . Total Hacks 85 | . 17 1 13 16 17 13 . . 8 Successful 49 | . 10 1 9 6 9 8 . . 6 Failed 36 | . 7 . 4 10 8 5 . . 2 Catastrophic 2 | . 1 . . 1 . . . . . Database Lockouts . | . . . . . . . . . . Manual 23 | . 2 . . 2 8 4 . . 7 Terminals 62 | . 11 . 8 11 17 7 . . 8 Fabricators 2 | . . . . . . 2 . . . Repair Stations 9 | . 2 . . 4 . 3 . . . Recycling Units 9 | . 4 . 3 1 . 1 . . . Scanalyzers 2 | . . . 2 . . . . . . Garrison Access . | . . . . . . . . . . Terminal Hacks 34 | . 6 1 6 2 9 4 . . 6 Record 2 | . . . 1 . 1 . . . . Part Schematic 4 | . . . . . 2 1 . . 1 Robot Analysis 1 | . 1 . . . . . . . . Open Door 1 | . . 1 . . . . . . . Level Access Points 2 | . . . . . 1 . . . 1 Fabricator Index 2 | . . . . . . 1 . . 1 Recycling Unit Index 1 | . . . . . . . . . 1 Alert Level 1 | . . . . . . 1 . . . Unreport Threat 5 | . 1 . . 1 2 . . . 1 Locate Traps 2 | . 1 . . 1 . . . . . Hauler Manifests 2 | . 1 . 1 . . . . . . Registered Components 1 | . . . 1 . . . . . . Zone Layout 10 | . 2 . 3 . 3 1 . . 1 Fabricator Hacks 2 | . . . . . . 2 . . . Load Schematic 1 | . . . . . . 1 . . . Build 1 | . . . . . . 1 . . . Repair Station Hacks 6 | . 2 . . 3 . 1 . . . Scan Component 4 | . 1 . . 2 . 1 . . . Repair 2 | . 1 . . 1 . . . . . Recycling Unit Hacks 5 | . 2 . 1 1 . 1 . . . Retrieve Components 5 | . 2 . 1 1 . 1 . . . Scanalyzer 2 | . . . 2 . . . . . . Retrieve Study 2 | . . . 2 . . . . . . Garrison Access Hacks . | . . . . . . . . . . Unauthorized Hacks . | . . . . . . . . . . Terminals . | . . . . . . . . . . Fabricators . | . . . . . . . . . . Repair Stations . | . . . . . . . . . . Recycling Units . | . . . . . . . . . . Scanalyzers . | . . . . . . . . . . Garrison Access . | . . . . . . . . . . Data Cores Recovered 2 | . . . . . 2 . . . . Used . | . . . . . . . . . . Hacking Detections 25 | . 4 . 5 7 5 3 . . 1 Full Trace Events 3 | . . . . 1 . 2 . . . Feedback Events . | . . . . . . . . . . Feedback Blocked . | . . . . . . . . . . Robot Schematics Acquired . | . . . . . . . . . . Robots Built . | . . . . . . . . . . Authchips . | . . . . . . . . . . Time . | . . . . . . . . . . Total Robot Build Rating . | . . . . . . . . . . Part Schematics Acquired 4 | . . . . . 2 1 . . 1 Parts Built 1 | . . . . . . 1 . . . Authchips . | . . . . . . . . . . Time 95 | . . . . . . 95 . . . Total Part Build Rating 5 | . . . . . . 5 . . . Part Studies Acquired 2 | . . . 2 . . . . . . Parts Repaired 2 | . 1 . . 1 . . . . . Time 62 | . 26 . . 36 . . . . . Parts Recycled . | . . . . . . . . . . Recycled Matter . | . . . . . . . . . . Retrieved Matter . | . . . . . . . . . . Retrieved Components 42 | . 13 . 10 10 . 9 . . . Parts Scanalyzed . | . . . . . . . . . . Part Schematics Acquired . | . . . . . . . . . . Parts Damaged . | . . . . . . . . . . Bothacking | -11 -10 -10 -9 -9 -8 -7 -7 -7 -6 ------------ Run | Yrd Mat Min Mat Sto Mat Fac Low Low Fac Used RIF Installer . | . . . . . . . . . . Robots Hacked . | . . . . . . . . . . Non-combat . | . . . . . . . . . . Combat . | . . . . . . . . . . Robot Hacks Applied . | . . . . . . . . . . Relay Couplers Released . | . . . . . . . . . . Fabnet Peak Effective % . | . . . . . . . . . . Robots Rewired . | . . . . . . . . . . Allies Hacked . | . . . . . . . . . . Hacks Repelled . | . . . . . . . . . . Allies | -11 -10 -10 -9 -9 -8 -7 -7 -7 -6 -------- Run | Yrd Mat Min Mat Sto Mat Fac Low Low Fac Total Allies . | . . . . . . . . . . Largest Group . | . . . . . . . . . . Highest-Rated Group . | . . . . . . . . . . Highest-Rated Ally . | . . . . . . . . . . Total Orders . | . . . . . . . . . . Ally Attacks . | . . . . . . . . . . Total Damage . | . . . . . . . . . . Kills . | . . . . . . . . . . Allies Corrupted . | . . . . . . . . . . Allies Melted . | . . . . . . . . . . Intel | -11 -10 -10 -9 -9 -8 -7 -7 -7 -6 ------- Run | Yrd Mat Min Mat Sto Mat Fac Low Low Fac Active Infowar (turns) 1999 | . . . 1837 162 . . . . . Sensors 1999 | . . . 1837 162 . . . . . Robot Analysis Total 1 | . 1 . . . . . . . . Derelict Logs Recovered 3 | . . 1 . . . . 1 1 . Drone Launches 2 | . . 2 . . . . . . . Drone Recoveries . | . . . . . . . . . . Exploration | -11 -10 -10 -9 -9 -8 -7 -7 -7 -6 ------------- Run | Yrd Mat Min Mat Sto Mat Fac Low Low Fac Turns Passed 5828 | 82 870 379 1838 1292 481 475 123 18 270 Spaces Moved 3689 | 46 416 210 770 390 531 611 329 51 335 Core 5 | 5 . . . . . . . . . Treads 1827 | 41 416 210 770 390 . . . . . Legs . | . . . . . . . . . . Wheels . | . . . . . . . . . . Hover 1857 | . . . . . 531 611 329 51 335 Flight . | . . . . . . . . . . Fastest Speed 28 | 50 160 160 160 240 40 33 35 35 28 Average Speed 114 | 148 160 160 200 240 42 33 35 35 29 Slowest Speed 240 | 160 160 160 240 240 164 40 35 35 30 Overloaded Moves . | . . . . . . . . . . Propulsion Burnouts . | . . . . . . . . . . Robots Hopped . | . . . . . . . . . . Potential Cave-ins . | . . . . . . . . . . Cave-ins Triggered . | . . . . . . . . . . Exploration Rate (%) 37 | 3 67 62 60 68 35 19 46 10 9 Regions Visited 9 Branch Regions 4 Pre-discovered Areas . | . . . . . . . . . . Known Exits Taken 3 | . . . 1 1 1 . . . . Unknown Exits Taken 6 | 1 1 1 . . . 1 1 1 . Scrap Searched 2 | . . . . . . . 2 . . Spaces Dug . | . . . . . . . . . . Terrain Destroyed 30 | . . . . . . . . . 30 Melee . | . . . . . . . . . . Projectile . | . . . . . . . . . . AOE 30 | . . . . . . . . . 30 Terrain Rammed . | . . . . . . . . . . Walls Destroyed . | . . . . . . . . . . Machines Disabled . | . . . . . . . . . . Actions | -11 -10 -10 -9 -9 -8 -7 -7 -7 -6 --------- Run | Yrd Mat Min Mat Sto Mat Fac Low Low Fac Total 4710 | 60 557 245 931 583 684 804 336 50 460 Wait 442 | . 46 27 38 46 47 139 8 . 91 Move 3680 | 45 415 209 769 389 530 610 328 50 335 Hop . | . . . . . . . . . . Pick Up 110 | 10 30 1 22 20 15 6 . . 6 Fast Attach 10 | . 1 1 . 3 4 . . . 1 Attach 32 | 5 1 . 5 2 5 11 . . 3 Detach . | . . . . . . . . . . Swap 45 | . 4 1 18 12 8 1 . . 1 Drop 77 | . 20 2 12 21 22 . . . . Fire 314 | . 40 4 67 90 53 37 . . 23 Melee . | . . . . . . . . . . Ram . | . . . . . . . . . . Kick . | . . . . . . . . . . Crush . | . . . . . . . . . . Escape Stasis . | . . . . . . . . . . Rewire . | . . . . . . . . . . Trap . | . . . . . . . . . . Miscellaneous . | . . . . . . . . . . Route ------- -11/Scrapyard -10/Materials (discovered 3 exits: *Mat / *Min x2) -10/Mines -9/Materials (discovered 5 exits: *Mat x2 / *Min / *Sto x2) -9/Storage -8/Materials (discovered 3 exits: *Fac x3) -7/Factory (discovered 2 exits: [*Low x2]) -7/Lower Caves -7/Lower Caves -6/Factory (discovered 4 exits: Fac x4) History --------- Turn | Location | Event 2 | -11/Scrapyard | Met Revision 17 8 | -11/Scrapyard | Discovered new exit (range 14) 83 | -11/Scrapyard | Entered Materials 261 | -10/Materials | Discovered new exit (range 13) 319 | -10/Materials | Build established: Mutant 476 | -10/Materials | Discovered new exit (range 4) 584 | -10/Materials | Discovered new exit (range 16) 676 | -10/Materials | Repaired Hover Unit 953 | -10/Materials | Entered Mines 964 | -10/Mines | Found the Drone Emporium 972 | -10/Mines | Found Prototype Device 972 | -10/Mines | Identified Thief Drone Bay 1008 | -10/Mines | Learned Materials emergency access door positions 1150 | -10/Mines | Received a Rocket Launcher from a helpful Derelict 1316 | -10/Mines | Discovered new exit (range 10) 1332 | -10/Mines | Entered Materials 1332 | -9/Materials | Evolved 2 slots: Propulsion x1, Utility x1 1576 | -9/Materials | Discovered new exit (range 14) 1701 | -9/Materials | Identified exit to Materials 1828 | -9/Materials | Discovered exit to Materials (range 15) 1908 | -9/Materials | Discovered new exit (range 5) 1914 | -9/Materials | Identified exit to Storage 1980 | -9/Materials | Discovered exit to Storage (range 10) 2492 | -9/Materials | Discovered new exit (range 16) 2537 | -9/Materials | Identified exit to Mines 3170 | -9/Materials | Entered Storage 3632 | -9/Storage | Garrison activated, responded to threat 3808 | -9/Storage | Build established: Scavenger-Mutant 3823 | -9/Storage | Garrison activated, responded to threat 4216 | -9/Storage | Repaired Broken Hover Unit+ 4366 | -9/Storage | Discovered exit to Materials (range 5) 4462 | -9/Storage | Entered Materials 4462 | -8/Materials | Evolved 2 slots: Propulsion x2 4803 | -8/Materials | Discovered new exit (range 8) 4823 | -8/Materials | Build established: Hacker-Mutant 4866 | -8/Materials | Identified exit to Factory 4943 | -8/Materials | Entered Factory 4943 | -7/Factory | Evolved 2 slots: Propulsion x1, Utility x1 5243 | -7/Factory | Fabricated Imp. System Shield? 5281 | -7/Factory | Garrison activated, responded to threat 5343 | -7/Factory | Search patrols dispatched 5365 | -7/Factory | Lost 3 parts (2n1w) 5384 | -7/Factory | Discovered new exit (range 13) 5399 | -7/Factory | Discovered new exit (range 13) 5418 | -7/Factory | Entered Lower Caves 5539 | -7/Lower Caves | Discovered new exit (range 8) 5541 | -7/Lower Caves | Entered another Lower Caves area 5547 | -7/Lower Caves | Discovered new exit (range 13) 5551 | -7/Lower Caves | Learned 4 Factory zone layouts 5559 | -7/Lower Caves | Entered Factory 5559 | -6/Factory | Evolved 2 slots: Propulsion x1, Utility x1 5690 | -6/Factory | Identified exit to Factory 5829 | -6/Factory | Self-destructed Last Messages --------------- R-10 Processor collects Imp. Ion Engine. Slug penetrates Wall. H-66 Slayer suffers critical hit (Burn). Phase Shifter melted. Targeting Computer melted. Lgt. Fission Core melted. H-66 Slayer destroyed. Slug penetrates Wall. H-66 Slayer suffers critical hit (Burn). H-66 Slayer heat short circuits Gauss Rifle. Penetrated by Slug. Imp. Assault Rifle destroyed. Acquired Proton Cannon. Power Conduit explodes. Scanalyzer disabled. Power Conduit explodes. Proton Cannon destroyed. Destroyed Proton Cannon. Gravmag System destroyed. Aerolev Unit destroyed. Map ----- +----------------------------------------------------+ | ?????????????????????????????????????????????????? | | ?????????????????????????????????????????????????? | | ?????????????????????????????????????????????????? | | ?????????????????????????????????????????????????? | | ?????????????????????????????????????????????????? | | ?????????????????????????????????????????????????? | | ?????????????????????????????????????????????????? | | ?????????????????????????????????????????????????? | | ?????????????????????????????????????????????????? | | ?????????????????????????????????????????????????? | | ?????????????????????????????????????????????????? | | ?????????????????????????????????????????????????? | | ?????????????????????????????????????????????????? | | ???????????????????##############????????????????? | | ???????????????????# #????????????????? | | ???????????????????# #????????????????? | | ??????????????????## #????????????????? | | ??????????????????? #????????????????? | | ???????????????????#Y ###??????????????? | | ???????????????????# ; #??############# | | ???????????????????# ; #??# | | ???????????????????# #??# | | ???????????????????# #??# | | ???????????????????# #??# | | ???????????????????# #??# | | ???????????????????# @ #?# ####### | | ???????????????????##;; ;;#### T#????? | | ????????????????##??# #????? | | ???????????????? #??#### ##????? | | ???????????????? #####?# s #?????? | | ???????????????? # ###Y ####### | | ???????????????? + # | | ???????????????? # ! ####s # """ | | ???????????????? #### #??# # """ | | ???????????????? + #??# # """ | | ???????????????? ###########??# + """ | | ???????????????? #????????????# # ! """ | | ?????????????##########???????# # """ | | ?????????????# #???????# # | | ?????????????# """ ################ ####### | | ?????????????# "G" # # #?????? | | ?????????????# " " # """"""" # #?????? | | ?????????????# # """"""" + ####### | | ?????????????# """ # """"""" # # % | | ?????????????# """ # """"""" # # | | ?????????????# """ # # # | | ?????????????# ################ # """" | | ####################+################# # """" | | ^ # """" | | ^ + """" | +----------------------------------------------------+ Best States ------------- Heat Dissipation 48 Energy Generation 14 Energy Capacity 280 Matter Stores 300 Matter Capacity 300 Sight Range 16 Robot Scan Range 14 Terrain Scan Density 10 Armor Coverage 300 Resistance: KI 20 Resistance: TH 20 Resistance: EX 20 Resistance: EM 20 Resistance: I 20 Resistance: S 20 Resistance: P 20 Evasion (%) 64 Recoil Reduction 3 Offensive Hacking 30 Defensive Hacking 12 Authchip Count 1 Item Schematics ----------------- Hacking Suite | -8/Materials | Hacked System Shield | -8/Materials | Hacked Imp. System Shield | -7/Factory | Hacked Aerolev Unit | -6/Factory | Hacked Robot Schematics ------------------ None Fabricated ------------ Imp. System Shield | x1 | -7/Factory Repaired ---------- Hover Unit | 33% | -10/Materials Hover Unit | 46% | -9/Storage | Broken Studied --------- Hover Unit | -9/Materials | Hacked Lgt. Cannon | -9/Materials | Hacked Alien Tech Used ----------------- None Achievements -------------- None Challenges ------------ None Game ------ Seed GyrokineticHeatScrapsphere Manual? 0 Play Time 01:05:17 Cumulative 36.3 hours Start 2026.03.30 @ 09:51:29 End 2026.03.30 @ 10:57:33 Sessions 1 Manual Loads 0 Difficulty Adventurer Special Mode None Game No. 41 Rogue 0 Adventurer 41 Explorer 0 Win Type - Total 0 Types 0/0/0/0/0/0/0/0/0/0 Lore% 14 Gallery% 30 Achievement% 28 Wizard Run 0 Options --------- Layout 1 ASCII 0 Keyboard 0 Movement Mouse Keybinds 1 Fullscreen 1 Font 32/Tamsyn Map View 50x35 Zoom Use 0% Tactical HUD 0 Map Filters NONE Filters NONE Steam 1 RUN: 1a00722c-2b67-4a36-8392-848aefe4f568